bitfinex-derivatives/quotes_ETHF0:USTF0_20250224
["timestamp","ask_amount","ask_price","bid_price","bid_amount"]
[1740414218171,0.73350001,2667.9,2667.8,42.377845]
[1740414218376,0.73350001,2667.9,2667.8,45.924845]
[1740414218683,0.74959,2668.1,2668.0,0.74961]
[1740414218885,3.2078,2668.6,2667.9,3.2078]
[1740414219072,3.2078,2668.6,2667.8,47.049315]
[1740414219073,1.87339,2668.9,2668.2,3.2078]
[1740414219278,4.3214,2669.0,2667.9,3.21342345]
[1740414219482,3.7467,2669.0,2668.2,3.2078]
[1740414219680,0.74949,2668.4,2668.3,4.1132]
[1740414220383,1.87339,2668.9,2668.3,4.1132]
[1740414220681,0.74943,2668.7,2668.3,4.1132]
[1740414220882,3.2078,2669.0,2668.3,4.7016]
[1740414221083,0.74943,2668.7,2668.3,4.7016]
[1740414221377,3.2078,2669.0,2668.3,4.7016]
[1740414221580,1.1327,2669.2,2668.5,3.2078]
[1740414221781,1.1327,2669.2,2668.9,3.2078]
[1740414222381,0.74932,2669.1,2669.0,0.74932]
[1740414222579,5.08081,2669.5,2668.9,3.2078]
[1740414222779,0.74932,2669.0,2668.9,3.2078]
[1740414223382,0.74935,2668.9,2668.8,3.545]
[1740414223982,2.41412,2669.2,2668.4,0.5331]
[1740414223983,3.7487,2669.2,2668.4,0.5331]
[1740414224179,1.87325,2669.1,2668.5,6.7518]
[1740414224381,0.74944,2668.6,2668.5,6.7518]
[1740414224685,0.74949,2668.4,2668.3,0.5672]
[1740414224880,0.5554,2669.0,2668.0,24.9284]
[1740414224881,0.74958,2668.1,2668.0,27.5458]
[1740414225085,0.74956,2668.2,2668.0,20.794]
[1740414225282,5.08125,2668.9,2668.1,3.2078]
[1740414225589,3.2078,2668.9,2668.4,0.74947]
[1740414225792,3.2078,2668.9,2668.4,4.29247]
[1740414225793,0.74943,2668.7,2668.4,4.29247]
[1740414225987,3.2078,2668.9,2668.4,4.29247]
[1740414226185,0.74945,2668.6,2668.4,4.29247]
[1740414226384,0.74946,2668.5,2668.4,3.543]
[1740414227182,0.74946,2668.5,2668.4,4.29249]
[1740414227384,0.74945,2668.6,2668.5,0.74945]
[1740414227688,0.74946,2668.5,2668.4,3.543]
[1740414228185,0.74946,2668.5,2668.4,4.29249]
[1740414228881,3.2078,2668.6,2668.4,3.543]
[1740414229084,0.5495,2668.8,2668.4,3.543]
[1740414229085,0.74943,2668.7,2668.6,0.74943]
[1740414229487,0.74946,2668.5,2668.2,0.5622]
[1740414229682,0.74955,2668.2,2668.1,3.542]
[1740414230587,0.74958,2668.1,2668.0,20.794]
[1740414230893,0.74958,2668.1,2668.0,21.54361]
[1740414231188,1.30032,2668.7,2668.6,0.74944]
[1740414231388,0.74947,2668.5,2668.4,0.74947]
[1740414232291,0.5509,2668.7,2668.2,45.88165]
[1740414232487,0.7494,2668.8,2668.7,0.74939]
[1740414232691,0.74945,2668.6,2668.5,0.74943]
[1740414232991,0.74943,2668.7,2668.6,0.74941]
[1740414233289,0.74948,2668.5,2668.4,0.74949]
[1740414233685,0.74949,2668.4,2668.3,4.29151]
[1740414234289,0.74947,2668.5,2668.4,0.74946]
[1740414234591,0.7494,2668.8,2668.7,0.74938]
[1740414234789,1.32908,2668.9,2668.8,0.74938]
[1740414234992,3.5836,2669.0,2668.9,0.74935]
[1740414234993,1.12514,2669.0,2668.9,0.74935]
[1740414235189,0.5848,2669.3,2668.8,5.4144]
[1740414235386,0.5848,2669.3,2669.2,0.74927]
[1740414235686,0.74922,2669.4,2669.3,0.74924]
[1740414235890,0.74923,2669.4,2669.3,0.74922]
[1740414236092,0.74919,2669.5,2669.4,0.74918]
[1740414236291,4.2973,2669.6,2669.1,3.2078]
[1740414236486,4.6731,2669.6,2669.1,3.2078]
[1740414236692,3.2078,2669.6,2669.1,3.2078]
[1740414236995,0.74922,2669.4,2669.3,0.74922]
[1740414237289,6.7478,2669.6,2668.1,3.2078]
[1740414237493,3.2078,2668.9,2668.1,4.328]
[1740414237688,3.7926,2668.8,2668.5,0.74945]
[1740414237994,3.7926,2668.8,2668.4,0.74949]
[1740414238189,3.7926,2668.8,2668.2,3.99635488]
[1740414238384,3.7926,2668.8,2668.2,5.87020488]
[1740414238590,0.74948,2668.5,2668.4,0.74947]
[1740414238790,0.74949,2668.4,2668.3,0.45635488]
[1740414239189,0.74949,2668.4,2668.3,0.74952]
[1740414240384,0.74951,2668.4,2668.2,3.54]
[1740414240585,0.3758,2668.6,2668.1,4.328]
[1740414240791,0.74948,2668.5,2668.4,0.74946]
[1740414240991,0.74942,2668.7,2668.6,0.74944]
[1740414241698,0.7495,2668.5,2668.4,0.74948]
[1740414241895,0.74946,2668.6,2668.5,0.74944]
[1740414242201,0.74945,2668.6,2668.5,0.74944]
[1740414242594,0.74944,2668.6,2668.5,0.45814878]
[1740414243092,1.12524,2668.6,2668.5,0.45814878]
[1740414243897,0.74961,2668.0,2667.9,0.00562345]
[1740414244500,1.12541,2668.0,2667.9,0.00562345]
[1740414244699,0.74972,2667.6,2667.1,23.9908]
[1740414244899,0.74978,2667.4,2667.3,0.74979]
[1740414245093,0.74975,2667.5,2667.1,23.9908]
[1740414245292,0.5486,2667.6,2667.2,41.17508213]
[1740414245497,0.7498,2667.4,2667.3,0.7498]
[1740414245697,0.5486,2667.6,2667.1,3.2078]
[1740414245899,0.5486,2667.6,2667.1,3.21342345]
[1740414246300,0.74976,2667.5,2667.4,0.74976]
[1740414246700,0.5486,2667.6,2667.1,3.21342345]
[1740414246902,0.74982,2667.3,2667.1,3.21342345]
[1740414247105,3.2078,2667.4,2667.1,0.00562345]
[1740414247303,0.74983,2667.2,2667.1,0.00562345]
[1740414248504,3.2078,2667.4,2667.1,0.00562345]
[1740414248705,3.2078,2667.4,2667.1,0.75546345]
[1740414248706,0.74983,2667.2,2667.1,0.75546345]
[1740414249112,0.74983,2667.2,2667.1,0.00562345]
[1740414249713,0.5486,2667.6,2667.3,0.7498]
[1740414249916,0.5486,2667.6,2667.1,0.00562345]
[1740414250113,0.74974,2667.6,2667.5,0.74975]
[1740414250417,3.2078,2667.7,2667.2,0.5744]
[1740414250614,0.74983,2667.2,2667.1,0.00562345]
[1740414250819,0.74982,2667.3,2667.2,0.74981]
[1740414251219,3.2078,2667.4,2667.2,0.74983]
[1740414251521,0.74983,2667.2,2667.1,0.00562345]
[1740414251717,3.9576,2667.4,2667.1,0.00562345]
[1740414251920,3.2078,2667.4,2667.1,0.00562345]
[1740414252217,0.74977,2667.5,2667.1,0.00562345]
[1740414252420,3.2078,2667.7,2667.3,0.74979]
[1740414252716,3.2078,2667.7,2667.1,0.00562345]
[1740414253115,0.74976,2667.5,2667.4,0.74976]
[1740414253913,3.2078,2667.7,2667.2,0.5477]
[1740414254115,0.5604,2668.1,2667.6,1.8743]
[1740414254419,0.00559202,2668.2,2668.1,0.74958]
[1740414255921,0.00297968,2668.6,2668.1,0.74958]
[1740414256125,0.00297968,2668.6,2668.5,0.74946]
[1740414256420,1.1326,2669.2,2668.4,0.5554]
[1740414256626,3.2078,2669.3,2668.4,0.5554]
[1740414256627,0.548,2669.6,2669.3,0.74924]
[1740414256818,0.548,2669.6,2668.8,1.87346]
[1740414256819,0.548,2669.6,2668.9,3.537]
[1740414257023,3.2078,2669.4,2669.0,40.8]
[1740414257323,3.95703,2669.4,2669.2,0.74924]
[1740414257527,3.95703,2669.4,2669.0,40.80562345]
[1740414257829,0.74924,2669.3,2669.2,0.74924]
[1740414258028,3.2078,2669.4,2669.0,40.80562345]
[1740414258326,0.74927,2669.3,2669.0,40.80562345]
[1740414258726,3.2078,2669.4,2669.0,0.00562345]
[1740414258926,0.7493,2669.1,2669.0,0.00562345]
[1740414259124,0.74925,2669.3,2669.2,0.74926]
[1740414259426,0.548,2669.6,2669.1,0.74928]
[1740414259629,3.2078,2669.4,2669.0,0.00562345]
[1740414260131,3.2078,2669.4,2669.1,0.7493]
[1740414260320,3.95703,2669.4,2669.3,0.74924]
[1740414260522,0.74924,2669.3,2669.2,0.74925]
[1740414260823,1.29717,2669.6,2669.5,0.74918]
[1740414261030,1.29716,2669.6,2669.5,0.74918]
[1740414261429,0.74916,2669.6,2669.5,0.74918]
[1740414262331,3.95693,2669.7,2669.6,0.74916]
[1740414262532,3.2078,2669.7,2669.1,2.41805]
[1740414262732,0.7492,2669.5,2669.4,0.74919]
[1740414262924,0.7492,2669.5,2669.4,0.74921]
[1740414263124,0.74927,2669.2,2669.0,0.00562345]
[1740414263332,0.74927,2669.2,2669.1,0.7493]
[1740414263524,0.7493,2669.1,2669.0,0.75492345]
[1740414263722,3.9571,2669.1,2669.0,0.00562345]
[1740414264425,0.5475,2669.2,2669.0,0.75494345]
[1740414264632,0.7493,2669.1,2669.0,0.00562345]
[1740414264829,3.9571,2669.1,2669.0,0.75494345]
[1740414265331,0.7493,2669.1,2669.0,0.75494345]
[1740414265636,0.7493,2669.1,2669.0,0.75492345]
[1740414265930,0.7493,2669.1,2669.0,0.00562345]
[1740414266232,0.74929,2669.2,2669.1,0.74927]
[1740414266425,0.74929,2669.2,2669.0,0.00562345]
[1740414266426,0.74926,2669.3,2669.2,0.74925]
[1740414266630,0.74926,2669.3,2669.2,0.74924]
[1740414266832,3.95704,2669.4,2669.3,0.74924]
[1740414267127,3.95701,2669.4,2669.3,0.74924]
[1740414267923,3.5836,2669.4,2669.0,0.00562345]
[1740414268129,0.7493,2669.1,2669.0,0.75494345]
[1740414268534,0.7493,2669.1,2669.0,0.00562345]
[1740414268736,3.9571,2669.1,2669.0,0.00562345]
[1740414269225,4.3329,2669.1,2669.0,0.00562345]
[1740414269831,0.74949,2668.5,2668.4,0.74948]
[1740414270031,0.74949,2668.4,2668.3,3.9573]
[1740414270431,0.74952,2668.3,2668.2,0.588]
[1740414271536,0.74952,2668.3,2668.0,0.00562345]
[1740414271537,1.12538,2668.1,2668.0,0.00562345]
[1740414272239,0.74958,2668.1,2668.0,0.00562345]
[1740414272437,1.12538,2668.1,2668.0,0.00562345]
[1740414272735,0.74958,2668.1,2668.0,0.00562345]
[1740414273137,3.95736,2668.2,2668.1,0.74958]
[1740414273329,3.2078,2668.2,2668.1,0.74958]
[1740414273936,3.21342345,2668.5,2668.0,0.00562345]
[1740414274139,3.21342345,2668.5,2668.1,3.532]
[1740414274341,0.74953,2668.3,2668.2,0.74952]
[1740414275030,3.21342345,2668.5,2668.1,3.532]
[1740414275338,3.21342345,2668.5,2668.4,0.74949]
[1740414275545,0.00562345,2668.5,2668.4,0.74949]
[1740414275839,0.00562345,2668.5,2668.4,41.54949]
[1740414276831,0.75508345,2668.5,2668.4,41.54949]
[1740414277037,0.00562345,2668.5,2668.4,41.54949]
[1740414280234,0.00562345,2668.5,2668.4,41.3433]
[1740414280431,3.2078,2669.1,2668.4,41.3433]
[1740414280638,3.2078,2669.4,2668.7,3.2078]
[1740414280838,3.2078,2669.4,2668.8,0.5611]
[1740414281239,3.2078,2669.9,2669.3,3.2078]
[1740414281437,3.2078,2670.2,2669.6,3.2078]
[1740414281635,20.784,2672.1,2669.7,0.5611]
[1740414281636,3.2078,2670.6,2669.7,0.5611]
[1740414281836,3.2078,2670.6,2669.8,3.531]
[1740414282345,3.2078,2670.3,2669.8,3.531]
[1740414282547,0.7491,2669.8,2669.7,44.8921]
[1740414282740,0.74913,2669.7,2669.6,0.00562345]
[1740414283039,2.75693,2669.7,2669.6,0.00562345]
[1740414283238,3.50606,2669.7,2669.6,0.00562345]
[1740414284445,3.50606,2669.7,2669.6,0.75478345]
[1740414284646,3.50606,2669.7,2669.6,0.00562345]
[1740414284843,3.50606,2669.7,2669.6,0.75478345]
[1740414285039,2.75693,2669.7,2669.6,0.75478345]
[1740414285246,3.50606,2669.7,2669.6,0.75478345]
[1740414285746,3.50606,2669.7,2669.6,0.00562345]
[1740414286841,3.50606,2669.7,2669.6,0.75478345]
[1740414286842,2.75693,2669.7,2669.6,0.75478345]
[1740414287242,3.9684,2670.1,2669.6,0.75478345]
[1740414287243,3.2078,2670.1,2670.0,0.74904]
[1740414287949,3.2078,2670.4,2670.3,0.74896]
[1740414288150,0.74897,2670.3,2670.2,0.74896]
[1740414288750,3.2078,2670.4,2670.3,0.74896]
[1740414288952,3.95673,2670.4,2670.3,0.74896]
[1740414289153,3.2078,2670.4,2670.3,0.74896]
[1740414290057,3.2078,2670.4,2670.0,4.0655]
[1740414290249,0.74898,2670.3,2670.2,0.74897]
[1740414290447,3.2078,2670.4,2670.0,4.81452]
[1740414290648,0.749,2670.2,2670.1,0.74901]
[1740414290843,0.74902,2670.1,2670.0,4.0655]
[1740414291049,3.2078,2670.4,2670.0,4.0655]
[1740414291349,0.7488,2670.9,2670.8,0.74881]
[1740414291850,0.74883,2670.8,2670.7,0.74885]
[1740414292051,3.2078,2671.0,2670.5,44.327]
[1740414292355,3.2078,2671.0,2670.8,0.74882]
[1740414292555,3.2078,2671.0,2670.5,44.327]
[1740414292556,3.2078,2671.0,2670.9,0.74879]
[1740414292854,0.5773,2671.2,2670.9,0.74879]
[1740414293153,0.5773,2671.2,2670.6,3.2078]
[1740414293352,3.2078,2671.3,2670.6,3.2078]
[1740414293547,3.2078,2671.6,2670.9,1.87195]
[1740414293749,0.74867,2671.4,2671.3,0.74867]
[1740414294051,3.2078,2671.6,2671.0,4.07482345]
[1740414294359,0.74874,2671.1,2671.0,4.07482345]
[1740414294549,0.74874,2671.1,2671.0,1.29657345]
[1740414294750,0.74874,2671.1,2671.0,0.54782345]
[1740414295051,3.95654,2671.1,2671.0,0.00562345]
[1740414295253,0.74874,2671.1,2671.0,0.00562345]
[1740414295755,3.95654,2671.1,2671.0,0.00562345]
[1740414297147,9.95654,2671.1,2671.0,3.45e-06]
[1740414297347,3.95654,2671.1,2671.0,3.45e-06]
[1740414299653,3.95654,2671.1,2671.0,0.74876345]
[1740414299860,3.95654,2671.1,2671.0,3.45e-06]
[1740414300362,0.00562,2671.3,2671.0,3.45e-06]
[1740414300659,0.74874,2671.2,2671.1,0.74872]
[1740414300858,0.00562,2671.3,2671.2,0.74871]
[1740414301561,0.7543,2671.3,2671.2,0.74871]
[1740414301757,0.74871,2671.2,2671.1,3.524]
[1740414301962,0.75433,2671.3,2671.2,0.74871]
[1740414302158,0.75432,2671.3,2671.2,0.74871]
[1740414303065,0.74871,2671.2,2671.1,3.524]
[1740414303355,0.74874,2671.1,2671.0,3.45e-06]
[1740414303555,1.29854,2671.1,2671.0,3.45e-06]
[1740414303954,0.74874,2671.1,2671.0,3.45e-06]
[1740414304358,0.74874,2671.1,2671.0,0.74876345]
[1740414304650,1.12454,2671.1,2671.0,3.45e-06]
[1740414305663,1.70124,2671.1,2671.0,3.45e-06]
[1740414309163,0.9525,2671.1,2671.0,3.45e-06]
[1740414309861,0.00562,2671.3,2671.0,3.45e-06]
[1740414310158,0.00562,2671.3,2671.0,0.55370345]
[1740414311867,0.00562,2671.3,2671.1,1.0974]
[1740414312366,3.2078,2671.8,2671.1,41.8974]
[1740414312573,3.2078,2671.8,2671.1,1.0974]
[1740414312767,0.3758,2671.6,2671.1,1.0974]
[1740414312966,3.2078,2671.5,2671.1,0.5504]
[1740414314165,0.5674,2671.7,2671.1,0.5504]
[1740414314367,3.35494556,2672.1,2671.2,3.2078]
[1740414314766,3.35494556,2672.1,2671.6,3.2078]
[1740414314767,0.14714556,2672.1,2671.6,3.2078]
[1740414315060,0.3758,2672.3,2671.7,1.1041]
[1740414315267,0.74853,2671.9,2671.8,0.74853]
[1740414315465,0.3758,2672.1,2671.9,0.7485]
[1740414315667,0.74851,2672.0,2671.9,0.7485]
[1740414315870,1.87103,2672.3,2671.7,1.1041]
[1740414316067,0.7485,2672.0,2671.9,0.7485]
[1740414316474,0.74849,2672.1,2672.0,0.74847]
[1740414316966,3.2078,2672.6,2672.0,1.87122]
[1740414317167,3.5836,2672.6,2672.1,0.572]
[1740414317356,3.5836,2672.6,2672.2,0.74841]
[1740414317566,0.74839,2672.4,2672.2,0.74841]
[1740414317761,3.2078,2672.6,2672.1,0.572]
[1740414318171,0.74841,2672.3,2672.2,0.74841]
[1740414318760,1.87086,2672.5,2671.7,1.1041]
[1740414319072,0.74845,2672.2,2672.1,0.74844]
[1740414319463,5.07866,2672.6,2671.9,1.87129]
[1740414319668,0.74843,2672.2,2672.1,0.74843]
[1740414319865,3.2078,2672.6,2671.8,3.52]
[1740414320074,1.87104,2672.3,2671.9,3.52]
[1740414320270,0.74848,2672.0,2671.9,4.2685]
[1740414320561,0.75169626,2672.0,2671.9,3.52]
[1740414322172,0.75169626,2672.0,2671.9,4.26851]
[1740414322773,0.00321626,2672.0,2671.9,7.47631]
[1740414324175,0.7483,2672.7,2672.6,0.74829]
[1740414324371,1.1503,2673.1,2672.4,1.87087]
[1740414324576,1.1503,2673.1,2672.7,0.74826]
[1740414324577,0.74828,2672.8,2672.7,0.74826]
[1740414324773,0.74831,2672.6,2672.5,1.1196]
[1740414324977,0.74831,2672.6,2672.5,0.5785]
[1740414326574,0.74834,2672.5,2672.4,3.52361241]
[1740414326778,0.74834,2672.5,2672.4,0.00561241]
[1740414326973,3.95614,2672.5,2672.4,0.00561241]
[1740414327176,3.5836,2672.5,2672.4,0.00561241]
[1740414328371,9.5836,2672.5,2672.4,2.41e-06]
[1740414328688,3.64503637,2672.5,2672.4,2.41e-06]
[1740414328981,3.5836,2672.5,2672.4,2.41e-06]
[1740414329283,4.33194,2672.5,2672.4,2.41e-06]
[1740414329675,1.12414,2672.5,2672.4,2.41e-06]
[1740414330177,0.38137317,2672.7,2672.4,2.41e-06]
[1740414330370,0.74834,2672.5,2672.4,2.41e-06]
[1740414330776,0.00557317,2672.7,2672.4,3.51700241]
[1740414330978,0.74834,2672.5,2672.4,3.51700241]
[1740414332777,0.00557317,2672.7,2672.5,0.74834]
[1740414332982,0.00557317,2672.7,2672.4,3.51700241]
[1740414333378,0.00557317,2672.7,2672.6,0.74831]
[1740414333584,0.74808,2673.5,2672.9,1.87057]
[1740414333787,0.7481,2673.4,2673.2,0.74813]
[1740414334281,0.74814,2673.3,2673.1,1.31586]
[1740414334587,3.2078,2673.6,2673.1,0.5677]
[1740414334777,0.74815,2673.2,2673.1,0.5677]
[1740414335087,0.74818,2673.1,2673.0,0.5771]
[1740414335875,1.87045,2673.1,2672.4,3.20780241]
[1740414336075,3.2078,2673.3,2672.4,3.20780241]
[1740414336076,0.74834,2672.5,2672.4,0.56680241]
[1740414336378,3.2078,2672.7,2672.4,0.56680241]
[1740414336683,0.74834,2672.5,2672.4,1.31517241]
[1740414336876,0.74834,2672.5,2672.4,0.56680241]
[1740414337083,0.74834,2672.5,2672.4,2.41e-06]
[1740414337479,0.74829,2672.7,2672.6,0.7483]
[1740414337673,3.2078,2673.0,2672.6,0.7483]
[1740414337983,3.2078,2673.0,2672.6,3.2078]
[1740414338185,3.2078,2673.4,2672.7,0.5814]
[1740414338478,0.74834,2672.5,2672.4,3.51400241]
[1740414338680,0.74834,2672.5,2672.4,2.41e-06]
[1740414338878,0.74834,2672.5,2672.4,0.74837241]
[1740414339081,0.74834,2672.5,2672.4,2.41e-06]
[1740414342882,1.1714,2672.7,2672.4,2.41e-06]
[1740414343079,3.2078,2672.8,2672.4,2.41e-06]
[1740414343279,3.2078,2673.2,2672.4,0.54650241]
[1740414343480,1.87052,2673.0,2672.4,0.54650241]
[1740414343680,1.1045,2673.1,2672.4,41.34650241]
[1740414343994,5.07838,2672.9,2672.4,0.54650241]
[1740414344186,5.07791,2673.6,2672.9,0.74821]
[1740414344484,0.74822,2673.0,2672.9,0.74823]
[1740414344684,1.655,2673.5,2672.8,0.5606]
[1740414344880,0.74822,2673.0,2672.8,0.5606]
[1740414345184,3.52519,2673.5,2672.8,0.5606]
[1740414345489,1.655,2673.5,2672.8,2.43123]
[1740414345688,3.95585,2673.6,2672.9,3.2078]
[1740414345990,0.74806,2673.5,2673.4,0.74808]
[1740414346384,3.95585,2673.6,2673.5,0.74806]
[1740414346690,3.2078,2673.9,2673.3,0.5606]
[1740414346890,1.655,2674.1,2673.3,2.43087]
[1740414347186,0.748,2673.8,2673.6,0.74802]
[1740414347377,2.40292,2674.1,2673.3,2.43087]
[1740414347581,1.655,2674.1,2673.7,0.74799]
[1740414347780,3.2078,2674.4,2674.1,0.74789]
[1740414347987,0.7479,2674.1,2673.8,0.5523]
[1740414348185,0.7479,2674.1,2673.9,0.74792]
[1740414348483,3.2078,2674.4,2674.1,0.74789]
[1740414348683,0.74787,2674.2,2674.1,0.74789]
[1740414348888,3.2078,2674.4,2673.9,0.5887]
[1740414349083,0.74779,2674.5,2674.0,3.2078]
[1740414349283,0.74777,2674.6,2674.0,5.07758]
[1740414349484,0.74781,2674.5,2674.3,0.74783]
[1740414349687,0.74781,2674.4,2674.3,4.25983]
[1740414349885,0.74781,2674.4,2674.3,3.512]
[1740414350079,1.86936,2674.7,2674.1,0.74789]
[1740414350284,0.74789,2674.2,2674.1,3.512]
[1740414350595,3.2078,2674.2,2673.9,0.5887]
[1740414350788,0.7478,2674.5,2674.0,3.512]
[1740414350987,5.6141,2674.8,2674.3,0.74783]
[1740414351293,0.74782,2674.4,2674.3,0.74784]
[1740414351488,0.74782,2674.4,2674.2,0.74784]
[1740414351684,0.74782,2674.4,2674.3,0.74784]
[1740414351995,1.86933,2674.7,2674.2,0.74786]
[1740414352191,0.74783,2674.4,2674.2,0.74786]
[1740414352397,0.74783,2674.4,2674.0,6.7198]
[1740414352689,0.74783,2674.4,2674.3,0.74784]
[1740414353289,3.7448,2674.8,2674.0,6.7198]
[1740414353489,0.74782,2674.4,2674.3,0.74783]
[1740414353996,5.61408,2674.8,2674.4,0.7478]
[1740414353997,0.74779,2674.5,2674.4,0.7478]
[1740414354191,3.7448,2674.8,2674.0,6.1898]
[1740414354398,3.2078,2674.5,2673.8,3.21341241]
[1740414354589,1.86954,2674.4,2673.9,0.74793]
[1740414354891,0.74785,2674.3,2674.2,0.74785]
[1740414355098,3.2078,2674.5,2673.9,1.1465]
[1740414355494,0.74791,2674.1,2674.0,0.7479]
[1740414355694,1.86954,2674.4,2674.0,3.51]
[1740414355888,0.74789,2674.2,2674.0,3.51]
[1740414356095,0.74789,2674.2,2674.1,0.7479]
[1740414356297,3.2078,2674.5,2674.1,0.74788]
[1740414356492,0.74788,2674.2,2674.1,0.74789]
[1740414356799,3.2078,2674.5,2674.0,3.51]
[1740414357098,0.74786,2674.3,2674.2,0.74787]
[1740414357399,3.2078,2674.5,2673.8,0.00561241]
[1740414357697,0.74795,2673.9,2673.8,0.00561241]
[1740414358797,3.95575,2673.9,2673.8,0.00561241]
[1740414360486,3.95575,2673.9,2673.8,2.41e-06]
[1740414360894,1.82437,2674.2,2674.1,0.7479]
[1740414361102,0.74792,2674.1,2674.0,0.74791]
[1740414361292,3.798,2674.5,2673.9,1.1126]
[1740414361492,1.86954,2674.4,2673.9,1.1126]
[1740414361696,3.80361,2674.5,2673.9,2.98245]
[1740414361998,5.6731,2674.5,2673.9,1.1126]
[1740414362190,0.74783,2674.4,2674.3,0.74783]
[1740414362699,0.74783,2674.4,2674.0,5.37782]
[1740414362700,0.7479,2674.1,2674.0,3.508]
[1740414362999,5.6245,2674.5,2674.0,3.508]
[1740414363196,0.74786,2674.3,2674.2,0.74786]
[1740414363799,0.74781,2674.4,2674.3,0.74784]
[1740414363995,0.74785,2674.3,2674.2,0.74786]
[1740414364198,0.74783,2674.4,2674.3,0.74783]
[1740414364399,0.00561,2674.5,2674.2,0.74785]
[1740414364699,0.74785,2674.3,2674.2,0.74785]
[1740414364895,0.00561,2674.5,2674.4,0.74781]
[1740414365199,0.75339,2674.5,2674.4,0.74781]
[1740414365504,0.74783,2674.4,2674.3,0.74781]
[1740414365697,0.00561,2674.5,2674.4,0.74781]
[1740414365891,0.00561,2674.5,2674.4,3.95561]
[1740414366392,3.2078,2675.1,2675.0,0.74764]
[1740414366697,0.74758,2675.3,2675.2,0.74758]
[1740414366895,3.2078,2675.4,2675.0,0.74762]
[1740414367101,0.7476,2675.2,2675.1,0.74761]
[1740414367603,0.74758,2675.3,2675.2,0.74758]
[1740414367903,0.5758,2675.6,2674.9,1.86917]
[1740414368109,3.2078,2675.7,2675.1,0.74759]
[1740414368402,5.07646,2675.7,2675.2,1.1414]
[1740414368600,0.74756,2675.3,2675.2,1.1414]
[1740414368801,1.8687,2675.6,2675.2,1.1414]
[1740414368802,0.5476,2675.6,2675.2,1.1414]
[1740414368997,3.7543,2676.0,2675.2,4.65401241]
[1740414369197,0.74746,2675.7,2675.2,4.65401241]
[1740414369399,3.2078,2675.9,2675.2,4.65401241]
[1740414369602,0.74747,2675.7,2675.4,0.74752]
[1740414369803,3.2078,2675.9,2675.2,4.65401241]
[1740414370000,1.8686,2675.8,2675.2,4.65401241]
[1740414370198,3.2078,2675.6,2675.2,1.14701241]
[1740414370398,3.2078,2675.6,2675.4,0.74752]
[1740414370399,0.74749,2675.6,2675.4,0.74752]
[1740414370708,0.74752,2675.5,2675.3,0.74755]
[1740414371003,3.2078,2675.9,2675.2,4.65301241]
[1740414371195,3.2078,2675.9,2675.4,0.74752]
[1740414371402,3.2078,2675.9,2675.8,0.74742]
[1740414371601,3.2078,2675.9,2675.2,4.65301241]
[1740414371803,0.74737,2676.0,2675.4,3.2078]
[1740414372007,1.1008,2676.4,2675.6,3.2078]
[1740414372304,0.74737,2676.0,2675.8,0.74741]
[1740414372502,0.74742,2675.8,2675.7,4.0491]
[1740414372703,0.74742,2675.8,2675.7,3.506]
[1740414373008,3.2078,2676.0,2675.7,3.506]
[1740414373213,0.74742,2675.8,2675.7,3.506]
[1740414373410,3.2078,2676.0,2675.5,6.487]
[1740414374205,3.2078,2676.3,2675.8,0.74741]
[1740414374408,0.74735,2676.1,2675.5,9.6948]
[1740414374704,1.1008,2676.4,2676.3,0.74728]
[1740414374898,3.2078,2676.8,2676.1,3.2078]
[1740414375104,0.74723,2676.5,2676.2,0.5371]
[1740414375304,0.74724,2676.5,2676.2,1.2844]
[1740414375504,3.2078,2676.8,2676.2,0.5371]
[1740414375907,0.74726,2676.4,2676.2,1.2844]
[1740414376108,3.2078,2676.8,2676.2,0.5371]
[1740414376303,3.2078,2676.8,2676.3,0.74728]
[1740414376503,0.74723,2676.5,2676.3,0.74728]
[1740414376707,3.2078,2676.8,2676.2,1.2844]
[1740414376708,0.74726,2676.4,2676.2,1.2844]
[1740414376911,0.74727,2676.4,2676.2,1.2844]
[1740414377212,0.74725,2676.5,2676.3,0.74728]
[1740414377503,0.5473,2677.0,2676.4,3.2078]
[1740414377808,0.5473,2677.0,2676.5,4.06]
[1740414378204,0.74714,2676.9,2676.7,0.74716]
[1740414378407,0.74715,2676.8,2676.5,4.06]
[1740414378708,3.95478,2677.4,2677.2,0.74701]
[1740414378913,3.2078,2677.9,2677.1,3.503]
[1740414379111,5.07493,2677.9,2677.2,1.095]
[1740414379410,0.747,2677.3,2677.2,1.095]
[1740414379604,3.2078,2677.3,2676.7,3.2078]
[1740414379807,0.74711,2676.9,2676.8,3.503]
[1740414380316,0.74718,2676.7,2676.5,0.75283241]
[1740414380506,0.7472,2676.6,2676.5,0.00561241]
[1740414380712,3.2078,2677.0,2676.5,0.00561241]
[1740414381016,0.74718,2676.7,2676.5,0.75282241]
[1740414381315,3.2078,2677.0,2676.5,0.00561241]
[1740414381609,0.74716,2676.8,2676.5,0.00561241]
[1740414381912,0.74712,2676.9,2676.5,0.00561241]
[1740414382112,3.95489,2677.0,2676.9,0.74711]
[1740414382408,3.2078,2677.0,2676.5,0.00561241]
[1740414382612,0.74713,2676.9,2676.7,0.74715]
[1740414382813,0.74714,2676.9,2676.7,0.74715]
[1740414383011,3.2078,2677.0,2676.6,0.74718]
[1740414383313,0.74715,2676.8,2676.6,0.74717]
[1740414383516,0.74719,2676.7,2676.5,0.75283241]
[1740414383714,3.2078,2677.0,2676.5,0.00561241]
[1740414384121,0.7472,2676.6,2676.5,0.00561241]
[1740414384418,3.2078,2676.7,2675.7,7.2653]
[1740414384605,3.2078,2676.4,2675.7,7.2653]
[1740414385009,0.74742,2675.8,2675.7,7.2653]